Workbook

Sheet Len-24 Age -20
A1: INPUT VALUES IN YELLOW
A3: 20
F5: Parameter | I5: 0
B6: Name | C6: Value | D6: Type | E6: Trans | F6: min | G6: max | I6: Input | K6: Use slider bars below to change the parameter values | Q6: slider_value (0-1000) | S6: #LO | T6: HI | U6: INIT | V6: PRIOR | W6: PR_type | X6: SD | Y6: PHASE | Z6: env-variable | AA6: use_dev | AB6: dev_minyr | AC6: dev_maxyr | AD6: dev_stddev | AE6: Block_Pattern | AF6: Block_Type
B7: PEAK | C7: =$I$5*I7 + (1-$I$5)*(F7+Q7/1000*(G7-F7)) -> 11.6226 | D7: value | E7: =C7 -> 11.6226 | F7: =B20*1.01 -> 0 | G7: =B23*0.99 -> 19.8 | I7: 13.33 | Q7: 587 | S7: =F7 -> 0 | T7: 19.8 | U7: =C7 -> 11.6226 | V7: =U7 -> 11.6226 | W7: 1 | X7: 0.05 | Y7: 2 | Z7: 0 | AA7: 0 | AB7: 0 | AC7: 0 | AD7: 0.5 | AE7: 0 | AF7: 0 | AG7: # | AH7: PEAK | AI7: value
B8: TOP | C8: 0.696 | D8: logistic | E8: =E$7+C16+(0.99*$B$23-E$7-C16)/(1+EXP(-C8)) -> 17.41208135 | F8: -5 | G8: 3 | I8: 0.704847 | Q8: 712 | S8: -5 | T8: 3 | U8: 0.696 | V8: 0.696 | W8: 1 | X8: 0.05 | Y8: 3 | Z8: 0 | AA8: 0 | AB8: 0 | AC8: 0 | AD8: 0.5 | AE8: 0 | AF8: 0 | AG8: # | AH8: TOP | AI8: logistic
B9: ASC-WIDTH | C9: 3.44 | D9: exp | E9: =EXP(C9) -> 31.18695817 | F9: -4 | G9: 12 | I9: 3.42 | Q9: 465 | S9: -4 | T9: 12 | U9: 3.44 | V9: 3.44 | W9: 1 | X9: 0.05 | Y9: 3 | Z9: 0 | AA9: 0 | AB9: 0 | AC9: 0 | AD9: 0.5 | AE9: 0 | AF9: 0 | AG9: # | AH9: WIDTH | AI9: exp
B10: DSC-WIDTH | C10: 0.208 | D10: exp | E10: =EXP(C10) -> 1.23121317 | F10: -2 | G10: 6 | I10: 0.210282 | Q10: 276 | S10: -2 | T10: 6 | U10: 0.208 | V10: 0.208 | W10: 1 | X10: 0.05 | Y10: 3 | Z10: 0 | AA10: 0 | AB10: 0 | AC10: 0 | AD10: 0.5 | AE10: 0 | AF10: 0 | AG10: # | AH10: WIDTH | AI10: exp
B11: INIT | C11: -8.9 | D11: logistic | E11: =1/(1+EXP(-C11)) -> 0.0001363703271 | F11: -15 | G11: 5 | I11: -8.9 | Q11: 305 | S11: -15 | T11: 5 | U11: -8.9 | V11: -8.9 | W11: 1 | X11: 0.05 | Y11: 2 | Z11: 0 | AA11: 0 | AB11: 0 | AC11: 0 | AD11: 0.5 | AE11: 0 | AF11: 0 | AG11: # | AH11: INIT | AI11: logistic
B12: FINAL | C12: 0.15 | D12: logistic | E12: =1/(1+EXP(-C12)) -> 0.5374298453 | F12: -5 | G12: 5 | I12: 0.1495 | Q12: 515 | S12: -5 | T12: 5 | U12: 0.15 | V12: 0.15 | W12: 1 | X12: 0.05 | Y12: 2 | Z12: 0 | AA12: 0 | AB12: 0 | AC12: 0 | AD12: 0.5 | AE12: 0 | AF12: 0 | AG12: # | AH12: FINAL | AI12: logistic
A14: BINS: | B14: min | C14: 0
B15: max | C15: 20 | H15: =IF(C11<-1000,-1000-C11,-1) -> -1
B16: BinWidth | C16: 1
B17: MidBin | C17: =IF(A3=20,0,IF(A3=24,0.5,"WRONG")) -> 0
A19: some intermediate quantities
A20: min | B20: =C14+$C$16*$C$17 -> 0 | D20: =EXP(-(($B20-$E$7)^2/$E$9)) -> 0.01314843432
A21: Peak | B21: =E7 -> 11.6226 | D21: 1
A22: Peak2 | B22: =E8 -> 17.41208135 | G22: 1 | J22: max_selex:
A23: max | B23: =C15+$C$16*$C$17 -> 20 | G23: =EXP(-(($B23-$E$8)^2/$E$10)) -> 0.004341163791 | J23: =MAX(J26:J150) -> 0.9999997818
H24: 20 | I24: 20
A25: Bin | B25: Bin_Mid | C25: asc | D25: asc_scaled | F25: desc | G25: desc_scaled | H25: join1 | I25: join2 | J25: selex
A26: =C14 -> 0 | B26: =A26+$C$16*$C$17 -> 0 | C26: =EXP(-(($B26-$E$7)^2/$E$9)) -> 0.01314843432 | D26: =IF(C$11>-999,($E$11+(1-$E$11)*(C26-$D$20)/($D$21-$D$20)),C26) -> 0.0001363703271 | F26: =EXP(-(($B26-$E$8)^2/$E$10)) -> 1.140203695e-107 | G26: =IF(C$12>-999,(1+($E$12-1)*(F26-$G$22)/($G$23-$G$22)),F26) -> 0.5354129971 | H26: =1/(1+EXP(-($H$24*($B26-$E$7)/(1+ABS($B26-$E$7))))) -> 1.005153588e-08 | I26: =1/(1+EXP(-($I$24*($B26-$E$8)/(1+ABS($B26-$E$8))))) -> 6.107448736e-09 | J26: =IF(A26>$H$15,(D26*(1-H26)+H26*(1*(1-I26)+G26*I26)),0.000001) -> 0.0001363803772
A27: =IF(A26<$C$15-$C$16,A26+$C$16,$C$15) -> 1 | B27: 1 | C27: 0.02683180738 | D27: =IF(C$11>-999,($E$11+(1-$E$11)*(C27-$D$20)/($D$21-$D$20)),C27) -> 0.01400016457 | F27: 9.727859296e-96 | G27: =IF(C$12>-999,(1+($E$12-1)*(F27-$G$22)/($G$23-$G$22)),F27) -> 0.5354129971 | H27: =1/(1+EXP(-($H$24*($B27-$E$7)/(1+ABS($B27-$E$7))))) -> 1.151961451e-08 | I27: =1/(1+EXP(-($I$24*($B27-$E$8)/(1+ABS($B27-$E$8))))) -> 6.500594215e-09 | J27: =IF(A27>$H$15,(D27*(1-H27)+H27*(1*(1-I27)+G27*I27)),0.000001) -> 0.01400017593
A28: =IF(A27<$C$15-$C$16,A27+$C$16,$C$15) -> 2 | B28: 2 | C28: 0.05135405975 | D28: 0.03884575343 | F28: 1.635226996e-84 | G28: 0.5354129971 | H28: 1.354535997e-08 | I28: 6.971847897e-09 | J28: 0.03884576644
A29: 3 | B29: 3 | C29: 0.09218252604 | D29: 0.08021256068 | F29: 5.41582656e-74 | G29: 0.5354129971 | H29: 1.64727279e-08 | I29: 7.545482888e-09 | J29: 0.08021257583
A30: 4 | B30: 4 | C30: 0.1551927381 | D30: 0.1440535896 | F30: 3.534088158e-64 | G30: 0.5354129971 | H30: 2.096284988e-08 | I30: 8.256414725e-09 | J30: 0.1440536076
A31: 5 | B31: 5 | C31: 0.2450434819 | D31: 0.2350890542 | F31: 4.543765833e-55 | G31: 0.5354129971 | H31: 2.841856056e-08 | I31: 9.156451306e-09 | J31: 0.2350890759
A32: 6 | B32: 6 | C32: 0.3628807096 | D32: 0.3544800167 | F32: 1.151013549e-46 | G32: 0.5354129971 | H32: 4.22340912e-08 | I32: 1.032531995e-08 | J32: 0.3544800439
A33: 7 | B33: 7 | C33: 0.5040035293 | D33: 0.4974636017 | F33: 5.744746399e-39 | G33: 0.5354129971 | H33: 7.226493402e-08 | I33: 1.189115108e-08 | J33: 0.497463638
A34: 8 | B34: 8 | C34: 0.6565264709 | D34: 0.6519976241 | F34: 5.649203494e-32 | G34: 0.5354129971 | H34: 1.559967454e-07 | I34: 1.407093553e-08 | J34: 0.6519976784
A35: 9 | B35: 9 | C35: 0.8020840373 | D35: 0.7994744298 | F35: 1.094534633e-25 | G35: 0.5354129971 | H35: 5.149974327e-07 | I35: 1.725659397e-08 | J35: 0.7994745331
A36: 10 | B36: 10 | C36: 0.9190443582 | D36: 0.9179769232 | F36: 4.178281814e-20 | G36: 0.5354129971 | H36: 4.22714283e-06 | I36: 2.221568774e-08 | J36: 0.9179772699
A37: 11 | B37: 11 | C37: 0.9876476659 | D37: 0.987484795 | F37: 3.142620078e-15 | G37: 0.5354129971 | H37: 0.0004644912255 | I37: 3.061723936e-08 | J37: 0.9874906082
A38: 12 | B38: 12 | C38: 0.9954434154 | D38: 0.9953833348 | F38: 4.657061409e-11 | G38: 0.5354129971 | H38: 0.9958475251 | I38: 4.66362347e-08 | J38: 0.9999808078
A39: 13 | B39: 13 | C39: 0.9409793284 | D39: 0.9402011154 | F39: 1.359746595e-07 | G39: 0.5354130602 | H39: 0.9999907182 | I39: 8.298847193e-08 | J39: 0.9999994064
A40: 14 | B40: 14 | C40: 0.8342429703 | D40: 0.8320573923 | F40: 7.82221821e-05 | G40: 0.5354493381 | H40: 0.9999992311 | I40: 1.91765569e-07 | J40: 0.9999997818
A41: 15 | B41: 15 | C41: 0.6936717321 | D41: 0.6896326616 | F41: 0.008866001603 | G41: 0.5395320262 | H41: 0.9999998012 | I41: 7.239990433e-07 | J41: 0.9999996049
A42: 16 | B42: 16 | C42: 0.5409590692 | D42: 0.5349064163 | F42: 0.1979938112 | G42: 0.6273983484 | H42: 0.999999915 | I42: 8.224328402e-06 | J42: 0.9999968961
A43: 17 | B43: 17 | C43: 0.3956614913 | D43: 0.3876930272 | F43: 0.8711668825 | G43: 0.9401458081 | H43: 0.9999999526 | I43: 0.002910516184 | J43: 0.9998257644
A44: 18 | B44: 18 | C44: 0.2714139273 | D44: 0.2618072054 | F44: 0.7552261699 | G44: 0.8862812599 | H44: 0.999999969 | I44: 0.9993921026 | J44: 0.8863503698
A45: 19 | B45: 19 | C45: 0.1746181743 | D45: 0.1637351585 | F45: 0.1289967105 | G45: 0.5953431922 | H45: 0.9999999776 | I45: 0.999995318 | J45: 0.5953450771
A46: 20 | B46: 20 | C46: 0.1053648432 | D46: 0.09356869239 | F46: 0.004341163791 | G46: 0.5374298453 | H46: 0.9999999826 | I46: 0.9999994568 | J46: 0.5374300889
A47: 20 | B47: 20 | C47: 0.1053648432 | D47: 0.09356869239 | F47: 0.004341163791 | G47: 0.5374298453 | H47: 0.9999999826 | I47: 0.9999994568 | J47: 0.5374300889
A48: 20 | B48: 20 | C48: 0.1053648432 | D48: 0.09356869239 | F48: 0.004341163791 | G48: 0.5374298453 | H48: 0.9999999826 | I48: 0.9999994568 | J48: 0.5374300889
A49: 20 | B49: 20 | C49: 0.1053648432 | D49: 0.09356869239 | F49: 0.004341163791 | G49: 0.5374298453 | H49: 0.9999999826 | I49: 0.9999994568 | J49: 0.5374300889
A50: 20 | B50: 20 | C50: 0.1053648432 | D50: 0.09356869239 | F50: 0.004341163791 | G50: 0.5374298453 | H50: 0.9999999826 | I50: 0.9999994568 | J50: 0.5374300889
A51: 20 | B51: 20 | C51: 0.1053648432 | D51: 0.09356869239 | F51: 0.004341163791 | G51: 0.5374298453 | H51: 0.9999999826 | I51: 0.9999994568 | J51: 0.5374300889
A52: 20 | B52: 20 | C52: 0.1053648432 | D52: 0.09356869239 | F52: 0.004341163791 | G52: 0.5374298453 | H52: 0.9999999826 | I52: 0.9999994568 | J52: 0.5374300889
A53: 20 | B53: 20 | C53: 0.1053648432 | D53: 0.09356869239 | F53: 0.004341163791 | G53: 0.5374298453 | H53: 0.9999999826 | I53: 0.9999994568 | J53: 0.5374300889
A54: 20 | B54: 20 | C54: 0.1053648432 | D54: 0.09356869239 | F54: 0.004341163791 | G54: 0.5374298453 | H54: 0.9999999826 | I54: 0.9999994568 | J54: 0.5374300889
A55: 20 | B55: 20 | C55: 0.1053648432 | D55: 0.09356869239 | F55: 0.004341163791 | G55: 0.5374298453 | H55: 0.9999999826 | I55: 0.9999994568 | J55: 0.5374300889
A56: 20 | B56: 20 | C56: 0.1053648432 | D56: 0.09356869239 | F56: 0.004341163791 | G56: 0.5374298453 | H56: 0.9999999826 | I56: 0.9999994568 | J56: 0.5374300889
A57: 20 | B57: 20 | C57: 0.1053648432 | D57: 0.09356869239 | F57: 0.004341163791 | G57: 0.5374298453 | H57: 0.9999999826 | I57: 0.9999994568 | J57: 0.5374300889
A58: 20 | B58: =A58+$C$16*$C$17 -> 20 | C58: =EXP(-(($B58-$E$7)^2/$E$9)) -> 0.1053648432 | D58: 0.09356869239 | F58: =EXP(-(($B58-$E$8)^2/$E$10)) -> 0.004341163791 | G58: 0.5374298453 | H58: 0.9999999826 | I58: 0.9999994568 | J58: 0.5374300889
A59: 20 | B59: 20 | C59: 0.1053648432 | D59: 0.09356869239 | F59: 0.004341163791 | G59: 0.5374298453 | H59: 0.9999999826 | I59: 0.9999994568 | J59: 0.5374300889
A60: 20 | B60: 20 | C60: 0.1053648432 | D60: 0.09356869239 | F60: 0.004341163791 | G60: 0.5374298453 | H60: 0.9999999826 | I60: 0.9999994568 | J60: 0.5374300889
A61: 20 | B61: 20 | C61: 0.1053648432 | D61: 0.09356869239 | F61: 0.004341163791 | G61: 0.5374298453 | H61: 0.9999999826 | I61: 0.9999994568 | J61: 0.5374300889
A62: 20 | B62: 20 | C62: 0.1053648432 | D62: 0.09356869239 | F62: 0.004341163791 | G62: 0.5374298453 | H62: 0.9999999826 | I62: 0.9999994568 | J62: 0.5374300889
A63: 20 | B63: 20 | C63: 0.1053648432 | D63: 0.09356869239 | F63: 0.004341163791 | G63: 0.5374298453 | H63: 0.9999999826 | I63: 0.9999994568 | J63: 0.5374300889
A64: 20 | B64: 20 | C64: 0.1053648432 | D64: 0.09356869239 | F64: 0.004341163791 | G64: 0.5374298453 | H64: 0.9999999826 | I64: 0.9999994568 | J64: 0.5374300889
A65: 20 | B65: 20 | C65: 0.1053648432 | D65: 0.09356869239 | F65: 0.004341163791 | G65: 0.5374298453 | H65: 0.9999999826 | I65: 0.9999994568 | J65: 0.5374300889
A66: 20 | B66: 20 | C66: 0.1053648432 | D66: 0.09356869239 | F66: 0.004341163791 | G66: 0.5374298453 | H66: 0.9999999826 | I66: 0.9999994568 | J66: 0.5374300889
A67: 20 | B67: 20 | C67: 0.1053648432 | D67: 0.09356869239 | F67: 0.004341163791 | G67: 0.5374298453 | H67: 0.9999999826 | I67: 0.9999994568 | J67: 0.5374300889
A68: 20 | B68: 20 | C68: 0.1053648432 | D68: 0.09356869239 | F68: 0.004341163791 | G68: 0.5374298453 | H68: 0.9999999826 | I68: 0.9999994568 | J68: 0.5374300889
A69: 20 | B69: 20 | C69: 0.1053648432 | D69: 0.09356869239 | F69: 0.004341163791 | G69: 0.5374298453 | H69: 0.9999999826 | I69: 0.9999994568 | J69: 0.5374300889
A70: 20 | B70: 20 | C70: 0.1053648432 | D70: 0.09356869239 | F70: 0.004341163791 | G70: 0.5374298453 | H70: 0.9999999826 | I70: 0.9999994568 | J70: 0.5374300889
A71: 20 | B71: 20 | C71: 0.1053648432 | D71: 0.09356869239 | F71: 0.004341163791 | G71: 0.5374298453 | H71: 0.9999999826 | I71: 0.9999994568 | J71: 0.5374300889
A72: 20 | B72: 20 | C72: 0.1053648432 | D72: 0.09356869239 | F72: 0.004341163791 | G72: 0.5374298453 | H72: 0.9999999826 | I72: 0.9999994568 | J72: 0.5374300889
A73: 20 | B73: 20 | C73: 0.1053648432 | D73: 0.09356869239 | F73: 0.004341163791 | G73: 0.5374298453 | H73: 0.9999999826 | I73: 0.9999994568 | J73: 0.5374300889
A74: 20 | B74: 20 | C74: 0.1053648432 | D74: 0.09356869239 | F74: 0.004341163791 | G74: 0.5374298453 | H74: 0.9999999826 | I74: 0.9999994568 | J74: 0.5374300889
A75: 20 | B75: 20 | C75: 0.1053648432 | D75: 0.09356869239 | F75: 0.004341163791 | G75: 0.5374298453 | H75: 0.9999999826 | I75: 0.9999994568 | J75: 0.5374300889
A76: 20 | B76: 20 | C76: 0.1053648432 | D76: 0.09356869239 | F76: 0.004341163791 | G76: 0.5374298453 | H76: 0.9999999826 | I76: 0.9999994568 | J76: 0.5374300889
A77: 20 | B77: 20 | C77: 0.1053648432 | D77: 0.09356869239 | F77: 0.004341163791 | G77: 0.5374298453 | H77: 0.9999999826 | I77: 0.9999994568 | J77: 0.5374300889
A78: 20 | B78: 20 | C78: 0.1053648432 | D78: 0.09356869239 | F78: 0.004341163791 | G78: 0.5374298453 | H78: 0.9999999826 | I78: 0.9999994568 | J78: 0.5374300889
A79: 20 | B79: 20 | C79: 0.1053648432 | D79: 0.09356869239 | F79: 0.004341163791 | G79: 0.5374298453 | H79: 0.9999999826 | I79: 0.9999994568 | J79: 0.5374300889
A80: 20 | B80: 20 | C80: 0.1053648432 | D80: 0.09356869239 | F80: 0.004341163791 | G80: 0.5374298453 | H80: 0.9999999826 | I80: 0.9999994568 | J80: 0.5374300889
A81: 20 | B81: 20 | C81: 0.1053648432 | D81: 0.09356869239 | F81: 0.004341163791 | G81: 0.5374298453 | H81: 0.9999999826 | I81: 0.9999994568 | J81: 0.5374300889
A82: 20 | B82: 20 | C82: 0.1053648432 | D82: 0.09356869239 | F82: 0.004341163791 | G82: 0.5374298453 | H82: 0.9999999826 | I82: 0.9999994568 | J82: 0.5374300889
A83: 20 | B83: 20 | C83: 0.1053648432 | D83: 0.09356869239 | F83: 0.004341163791 | G83: 0.5374298453 | H83: 0.9999999826 | I83: 0.9999994568 | J83: 0.5374300889
A84: 20 | B84: 20 | C84: 0.1053648432 | D84: 0.09356869239 | F84: 0.004341163791 | G84: 0.5374298453 | H84: 0.9999999826 | I84: 0.9999994568 | J84: 0.5374300889
A85: 20 | B85: 20 | C85: 0.1053648432 | D85: 0.09356869239 | F85: 0.004341163791 | G85: 0.5374298453 | H85: 0.9999999826 | I85: 0.9999994568 | J85: 0.5374300889
A86: 20 | B86: 20 | C86: 0.1053648432 | D86: 0.09356869239 | F86: 0.004341163791 | G86: 0.5374298453 | H86: 0.9999999826 | I86: 0.9999994568 | J86: 0.5374300889
A87: 20 | B87: 20 | C87: 0.1053648432 | D87: 0.09356869239 | F87: 0.004341163791 | G87: 0.5374298453 | H87: 0.9999999826 | I87: 0.9999994568 | J87: 0.5374300889
A88: 20 | B88: 20 | C88: 0.1053648432 | D88: 0.09356869239 | F88: 0.004341163791 | G88: 0.5374298453 | H88: 0.9999999826 | I88: 0.9999994568 | J88: 0.5374300889
A89: 20 | B89: 20 | C89: 0.1053648432 | D89: 0.09356869239 | F89: 0.004341163791 | G89: 0.5374298453 | H89: 0.9999999826 | I89: 0.9999994568 | J89: 0.5374300889
A90: 20 | B90: =A90+$C$16*$C$17 -> 20 | C90: =EXP(-(($B90-$E$7)^2/$E$9)) -> 0.1053648432 | D90: 0.09356869239 | F90: =EXP(-(($B90-$E$8)^2/$E$10)) -> 0.004341163791 | G90: 0.5374298453 | H90: 0.9999999826 | I90: 0.9999994568 | J90: 0.5374300889
A91: 20 | B91: 20 | C91: 0.1053648432 | D91: =IF(C$11>-999,($E$11+(1-$E$11)*(C91-$D$20)/($D$21-$D$20)),C91) -> 0.09356869239 | F91: 0.004341163791 | G91: =IF(C$12>-999,(1+($E$12-1)*(F91-$G$22)/($G$23-$G$22)),F91) -> 0.5374298453 | H91: =1/(1+EXP(-($H$24*($B91-$E$7)/(1+ABS($B91-$E$7))))) -> 0.9999999826 | I91: =1/(1+EXP(-($I$24*($B91-$E$8)/(1+ABS($B91-$E$8))))) -> 0.9999994568 | J91: =IF(A91>$H$15,(D91*(1-H91)+H91*(1*(1-I91)+G91*I91)),0.000001) -> 0.5374300889
A92: =IF(A91<$C$15-$C$16,A91+$C$16,$C$15) -> 20 | B92: 20 | C92: 0.1053648432 | D92: 0.09356869239 | F92: 0.004341163791 | G92: 0.5374298453 | H92: 0.9999999826 | I92: 0.9999994568 | J92: 0.5374300889
A93: 20 | B93: 20 | C93: 0.1053648432 | D93: 0.09356869239 | F93: 0.004341163791 | G93: 0.5374298453 | H93: 0.9999999826 | I93: 0.9999994568 | J93: 0.5374300889
A94: 20 | B94: 20 | C94: 0.1053648432 | D94: 0.09356869239 | F94: 0.004341163791 | G94: 0.5374298453 | H94: 0.9999999826 | I94: 0.9999994568 | J94: 0.5374300889
A95: 20 | B95: 20 | C95: 0.1053648432 | D95: 0.09356869239 | F95: 0.004341163791 | G95: 0.5374298453 | H95: 0.9999999826 | I95: 0.9999994568 | J95: 0.5374300889
A96: 20 | B96: 20 | C96: 0.1053648432 | D96: 0.09356869239 | F96: 0.004341163791 | G96: 0.5374298453 | H96: 0.9999999826 | I96: 0.9999994568 | J96: 0.5374300889
A97: 20 | B97: 20 | C97: 0.1053648432 | D97: 0.09356869239 | F97: 0.004341163791 | G97: 0.5374298453 | H97: 0.9999999826 | I97: 0.9999994568 | J97: 0.5374300889
A98: 20 | B98: 20 | C98: 0.1053648432 | D98: 0.09356869239 | F98: 0.004341163791 | G98: 0.5374298453 | H98: 0.9999999826 | I98: 0.9999994568 | J98: 0.5374300889
A99: 20 | B99: 20 | C99: 0.1053648432 | D99: 0.09356869239 | F99: 0.004341163791 | G99: 0.5374298453 | H99: 0.9999999826 | I99: 0.9999994568 | J99: 0.5374300889
A100: 20 | B100: 20 | C100: 0.1053648432 | D100: 0.09356869239 | F100: 0.004341163791 | G100: 0.5374298453 | H100: 0.9999999826 | I100: 0.9999994568 | J100: 0.5374300889
A101: 20 | B101: 20 | C101: 0.1053648432 | D101: 0.09356869239 | F101: 0.004341163791 | G101: 0.5374298453 | H101: 0.9999999826 | I101: 0.9999994568 | J101: 0.5374300889
A102: 20 | B102: 20 | C102: 0.1053648432 | D102: 0.09356869239 | F102: 0.004341163791 | G102: 0.5374298453 | H102: 0.9999999826 | I102: 0.9999994568 | J102: 0.5374300889
A103: 20 | B103: 20 | C103: 0.1053648432 | D103: 0.09356869239 | F103: 0.004341163791 | G103: 0.5374298453 | H103: 0.9999999826 | I103: 0.9999994568 | J103: 0.5374300889
A104: 20 | B104: 20 | C104: 0.1053648432 | D104: 0.09356869239 | F104: 0.004341163791 | G104: 0.5374298453 | H104: 0.9999999826 | I104: 0.9999994568 | J104: 0.5374300889
A105: 20 | B105: 20 | C105: 0.1053648432 | D105: 0.09356869239 | F105: 0.004341163791 | G105: 0.5374298453 | H105: 0.9999999826 | I105: 0.9999994568 | J105: 0.5374300889
A106: 20 | B106: 20 | C106: 0.1053648432 | D106: 0.09356869239 | F106: 0.004341163791 | G106: 0.5374298453 | H106: 0.9999999826 | I106: 0.9999994568 | J106: 0.5374300889
A107: 20 | B107: 20 | C107: 0.1053648432 | D107: 0.09356869239 | F107: 0.004341163791 | G107: 0.5374298453 | H107: 0.9999999826 | I107: 0.9999994568 | J107: 0.5374300889
A108: 20 | B108: 20 | C108: 0.1053648432 | D108: 0.09356869239 | F108: 0.004341163791 | G108: 0.5374298453 | H108: 0.9999999826 | I108: 0.9999994568 | J108: 0.5374300889
A109: 20 | B109: 20 | C109: 0.1053648432 | D109: 0.09356869239 | F109: 0.004341163791 | G109: 0.5374298453 | H109: 0.9999999826 | I109: 0.9999994568 | J109: 0.5374300889
A110: 20 | B110: 20 | C110: 0.1053648432 | D110: 0.09356869239 | F110: 0.004341163791 | G110: 0.5374298453 | H110: 0.9999999826 | I110: 0.9999994568 | J110: 0.5374300889
A111: 20 | B111: 20 | C111: 0.1053648432 | D111: 0.09356869239 | F111: 0.004341163791 | G111: 0.5374298453 | H111: 0.9999999826 | I111: 0.9999994568 | J111: 0.5374300889
A112: 20 | B112: 20 | C112: 0.1053648432 | D112: 0.09356869239 | F112: 0.004341163791 | G112: 0.5374298453 | H112: 0.9999999826 | I112: 0.9999994568 | J112: 0.5374300889
A113: 20 | B113: 20 | C113: 0.1053648432 | D113: 0.09356869239 | F113: 0.004341163791 | G113: 0.5374298453 | H113: 0.9999999826 | I113: 0.9999994568 | J113: 0.5374300889
A114: 20 | B114: 20 | C114: 0.1053648432 | D114: 0.09356869239 | F114: 0.004341163791 | G114: 0.5374298453 | H114: 0.9999999826 | I114: 0.9999994568 | J114: 0.5374300889
A115: 20 | B115: 20 | C115: 0.1053648432 | D115: 0.09356869239 | F115: 0.004341163791 | G115: 0.5374298453 | H115: 0.9999999826 | I115: 0.9999994568 | J115: 0.5374300889
A116: 20 | B116: 20 | C116: 0.1053648432 | D116: 0.09356869239 | F116: 0.004341163791 | G116: 0.5374298453 | H116: 0.9999999826 | I116: 0.9999994568 | J116: 0.5374300889
A117: 20 | B117: 20 | C117: 0.1053648432 | D117: 0.09356869239 | F117: 0.004341163791 | G117: 0.5374298453 | H117: 0.9999999826 | I117: 0.9999994568 | J117: 0.5374300889
A118: 20 | B118: 20 | C118: 0.1053648432 | D118: 0.09356869239 | F118: 0.004341163791 | G118: 0.5374298453 | H118: 0.9999999826 | I118: 0.9999994568 | J118: 0.5374300889
A119: 20 | B119: 20 | C119: 0.1053648432 | D119: 0.09356869239 | F119: 0.004341163791 | G119: 0.5374298453 | H119: 0.9999999826 | I119: 0.9999994568 | J119: 0.5374300889
A120: 20 | B120: 20 | C120: 0.1053648432 | D120: 0.09356869239 | F120: 0.004341163791 | G120: 0.5374298453 | H120: 0.9999999826 | I120: 0.9999994568 | J120: 0.5374300889
A121: 20 | B121: 20 | C121: 0.1053648432 | D121: 0.09356869239 | F121: 0.004341163791 | G121: 0.5374298453 | H121: 0.9999999826 | I121: 0.9999994568 | J121: 0.5374300889
A122: 20 | B122: =A122+$C$16*$C$17 -> 20 | C122: =EXP(-(($B122-$E$7)^2/$E$9)) -> 0.1053648432 | D122: 0.09356869239 | F122: =EXP(-(($B122-$E$8)^2/$E$10)) -> 0.004341163791 | G122: 0.5374298453 | H122: 0.9999999826 | I122: 0.9999994568 | J122: 0.5374300889
A123: 20 | B123: 20 | C123: 0.1053648432 | D123: 0.09356869239 | F123: 0.004341163791 | G123: 0.5374298453 | H123: 0.9999999826 | I123: 0.9999994568 | J123: 0.5374300889
A124: 20 | B124: 20 | C124: 0.1053648432 | D124: 0.09356869239 | F124: 0.004341163791 | G124: 0.5374298453 | H124: 0.9999999826 | I124: 0.9999994568 | J124: 0.5374300889
A125: 20 | B125: 20 | C125: 0.1053648432 | D125: 0.09356869239 | F125: 0.004341163791 | G125: 0.5374298453 | H125: 0.9999999826 | I125: 0.9999994568 | J125: 0.5374300889
A126: 20 | B126: 20 | C126: 0.1053648432 | D126: 0.09356869239 | F126: 0.004341163791 | G126: 0.5374298453 | H126: 0.9999999826 | I126: 0.9999994568 | J126: 0.5374300889
A127: 20 | B127: 20 | C127: 0.1053648432 | D127: 0.09356869239 | F127: 0.004341163791 | G127: 0.5374298453 | H127: 0.9999999826 | I127: 0.9999994568 | J127: 0.5374300889
A128: 20 | B128: 20 | C128: 0.1053648432 | D128: 0.09356869239 | F128: 0.004341163791 | G128: 0.5374298453 | H128: 0.9999999826 | I128: 0.9999994568 | J128: 0.5374300889
A129: 20 | B129: 20 | C129: 0.1053648432 | D129: 0.09356869239 | F129: 0.004341163791 | G129: 0.5374298453 | H129: 0.9999999826 | I129: 0.9999994568 | J129: 0.5374300889
A130: 20 | B130: 20 | C130: 0.1053648432 | D130: 0.09356869239 | F130: 0.004341163791 | G130: 0.5374298453 | H130: 0.9999999826 | I130: 0.9999994568 | J130: 0.5374300889
A131: 20 | B131: 20 | C131: 0.1053648432 | D131: 0.09356869239 | F131: 0.004341163791 | G131: 0.5374298453 | H131: 0.9999999826 | I131: 0.9999994568 | J131: 0.5374300889
A132: 20 | B132: 20 | C132: 0.1053648432 | D132: 0.09356869239 | F132: 0.004341163791 | G132: 0.5374298453 | H132: 0.9999999826 | I132: 0.9999994568 | J132: 0.5374300889
A133: 20 | B133: 20 | C133: 0.1053648432 | D133: 0.09356869239 | F133: 0.004341163791 | G133: 0.5374298453 | H133: 0.9999999826 | I133: 0.9999994568 | J133: 0.5374300889
A134: 20 | B134: 20 | C134: 0.1053648432 | D134: 0.09356869239 | F134: 0.004341163791 | G134: 0.5374298453 | H134: 0.9999999826 | I134: 0.9999994568 | J134: 0.5374300889
A135: 20 | B135: 20 | C135: 0.1053648432 | D135: 0.09356869239 | F135: 0.004341163791 | G135: 0.5374298453 | H135: 0.9999999826 | I135: 0.9999994568 | J135: 0.5374300889
A136: 20 | B136: 20 | C136: 0.1053648432 | D136: 0.09356869239 | F136: 0.004341163791 | G136: 0.5374298453 | H136: 0.9999999826 | I136: 0.9999994568 | J136: 0.5374300889
A137: 20 | B137: 20 | C137: 0.1053648432 | D137: 0.09356869239 | F137: 0.004341163791 | G137: 0.5374298453 | H137: 0.9999999826 | I137: 0.9999994568 | J137: 0.5374300889
A138: 20 | B138: 20 | C138: 0.1053648432 | D138: 0.09356869239 | F138: 0.004341163791 | G138: 0.5374298453 | H138: 0.9999999826 | I138: 0.9999994568 | J138: 0.5374300889
A139: 20 | B139: 20 | C139: 0.1053648432 | D139: 0.09356869239 | F139: 0.004341163791 | G139: 0.5374298453 | H139: 0.9999999826 | I139: 0.9999994568 | J139: 0.5374300889
A140: 20 | B140: 20 | C140: 0.1053648432 | D140: 0.09356869239 | F140: 0.004341163791 | G140: 0.5374298453 | H140: 0.9999999826 | I140: 0.9999994568 | J140: 0.5374300889
A141: 20 | B141: 20 | C141: 0.1053648432 | D141: 0.09356869239 | F141: 0.004341163791 | G141: 0.5374298453 | H141: 0.9999999826 | I141: 0.9999994568 | J141: 0.5374300889
A142: 20 | B142: 20 | C142: 0.1053648432 | D142: 0.09356869239 | F142: 0.004341163791 | G142: 0.5374298453 | H142: 0.9999999826 | I142: 0.9999994568 | J142: 0.5374300889
A143: 20 | B143: 20 | C143: 0.1053648432 | D143: 0.09356869239 | F143: 0.004341163791 | G143: 0.5374298453 | H143: 0.9999999826 | I143: 0.9999994568 | J143: 0.5374300889
A144: 20 | B144: 20 | C144: 0.1053648432 | D144: 0.09356869239 | F144: 0.004341163791 | G144: 0.5374298453 | H144: 0.9999999826 | I144: 0.9999994568 | J144: 0.5374300889
A145: 20 | B145: 20 | C145: 0.1053648432 | D145: 0.09356869239 | F145: 0.004341163791 | G145: 0.5374298453 | H145: 0.9999999826 | I145: 0.9999994568 | J145: 0.5374300889
A146: 20 | B146: 20 | C146: 0.1053648432 | D146: 0.09356869239 | F146: 0.004341163791 | G146: 0.5374298453 | H146: 0.9999999826 | I146: 0.9999994568 | J146: 0.5374300889
A147: 20 | B147: 20 | C147: 0.1053648432 | D147: 0.09356869239 | F147: 0.004341163791 | G147: 0.5374298453 | H147: 0.9999999826 | I147: 0.9999994568 | J147: 0.5374300889
A148: 20 | B148: 20 | C148: 0.1053648432 | D148: 0.09356869239 | F148: 0.004341163791 | G148: 0.5374298453 | H148: 0.9999999826 | I148: 0.9999994568 | J148: 0.5374300889
A149: 20 | B149: 20 | C149: 0.1053648432 | D149: 0.09356869239 | F149: 0.004341163791 | G149: 0.5374298453 | H149: 0.9999999826 | I149: 0.9999994568 | J149: 0.5374300889
A150: 20 | B150: 20 | C150: 0.1053648432 | D150: 0.09356869239 | F150: 0.004341163791 | G150: 0.5374298453 | H150: 0.9999999826 | I150: 0.9999994568 | J150: 0.5374300889
A151: 20 | B151: 20
A152: 20

Sheet Len 6
A1: Pattern #6; non-parametric selex based on set of linear segments
A2: note that values are the ln(selex) at length and are not a randwalk across lengths
A4: This example has 7 waypoints specified by the value of "special"
A5: #Pattern | B5: Retention | C5: Male | D5: Special
A6: 6 | B6: 0 | C6: 0 | D6: 7
A7: #Note the examples values are set to be dome-shaped with largest selectivity occurring at the 5th waypoint
A8: 20 | B8: 80 | C8: 36 | D8: 36 | E8: 0 | F8: 99 | G8: -3 | H8: 0 | I8: 0 | J8: 0 | K8: 0 | L8: 0 | M8: 0 | N8: 0 | P8: # P1; length below which ln(selex) ramps down to -10.
A9: 20 | B9: 200 | C9: 76 | D9: 76 | E9: 0 | F9: 99 | G9: -3 | H9: 0 | I9: 0 | J9: 0 | K9: 0 | L9: 0 | M9: 0 | N9: 0 | P9: # P2; length above which selex is constant
A10: -5 | B10: 9 | C10: -2 | D10: -2 | E10: 0 | F10: 99 | G10: 2 | H10: 0 | I10: 0 | J10: 0 | K10: 0 | L10: 0 | M10: 0 | N10: 0 | P10: # ln selex at P1
A11: -5 | B11: 9 | C11: 0 | D11: 0 | E11: 0 | F11: 99 | G11: 2 | H11: 0 | I11: 0 | J11: 0 | K11: 0 | L11: 0 | M11: 0 | N11: 0 | P11: # ln selex at intermediate waypoint; N waypoints set in the Special element of selex set-up
A12: -5 | B12: 9 | C12: 1 | D12: 0 | E12: 0 | F12: 99 | G12: 2 | H12: 0 | I12: 0 | J12: 0 | K12: 0 | L12: 0 | M12: 0 | N12: 0 | P12: # ln selex at intermediate waypoint; N waypoints set in the Special element of selex set-up
A13: -5 | B13: 9 | C13: 2 | D13: 7 | E13: 0 | F13: 99 | G13: 2 | H13: 0 | I13: 0 | J13: 0 | K13: 0 | L13: 0 | M13: 0 | N13: 0 | P13: # ln selex at intermediate waypoint; N waypoints set in the Special element of selex set-up
A14: -5 | B14: 9 | C14: 3.3 | D14: 7 | E14: 0 | F14: 2 | G14: 2 | H14: 0 | I14: 0 | J14: 0 | K14: 0 | L14: 0 | M14: 0 | N14: 0 | P14: # ln selex at intermediate waypoint; N waypoints set in the Special element of selex set-up
A15: -5 | B15: 9 | C15: 3.2 | D15: 7 | E15: 0 | F15: 2 | G15: 2 | H15: 0 | I15: 0 | J15: 0 | K15: 0 | L15: 0 | M15: 0 | N15: 0 | P15: # ln selex at intermediate waypoint; N waypoints set in the Special element of selex set-up
A16: -5 | B16: 9 | C16: 3 | D16: 7 | E16: 0 | F16: 2 | G16: 2 | H16: 0 | I16: 0 | J16: 0 | K16: 0 | L16: 0 | M16: 0 | N16: 0 | P16: # ln selex at P2
A18: Waypoints
A19: 36 | B19: =A19+($C$9-$C$8)/($D$6-1) -> 42.66666667 | C19: =B19+($C$9-$C$8)/($D$6-1) -> 49.33333333 | D19: =C19+($C$9-$C$8)/($D$6-1) -> 56 | E19: =D19+($C$9-$C$8)/($D$6-1) -> 62.66666667 | F19: =E19+($C$9-$C$8)/($D$6-1) -> 69.33333333 | G19: =F19+($C$9-$C$8)/($D$6-1) -> 76
A20: =C10 -> -2 | B20: =C11 -> 0 | C20: =C12 -> 1 | D20: =C13 -> 2 | E20: =C14 -> 3.3 | F20: =C15 -> 3.2 | G20: =C16 -> 3
A21: Hardwired calculations
A23: Len_mid | B23: tempvec_l | E23: tempvec-max | G23: sel
A24: 10 | B24: =-10 -> -10 | C24: start | D24: =(B37-B24)/(A37-A24) -> 0.3076923077 | E24: =B24-MAX($B$24:$B$68) -> -13.3 | G24: =EXP(E24) -> 1.674493209e-06
A25: =A24+2 -> 12 | B25: =B24+(A25-A24)*D25 -> -9.384615385 | C25: linear | D25: =D24 -> 0.3076923077 | E25: =B25-MAX($B$24:$B$68) -> -12.68461538 | G25: =EXP(E25) -> 3.09842889e-06
A26: =A25+2 -> 14 | B26: -8.769230769 | C26: linear | D26: 0.3076923077 | E26: -12.06923077 | G26: 5.733234111e-06
A27: 16 | B27: -8.153846154 | C27: linear | D27: 0.3076923077 | E27: -11.45384615 | G27: 1.060859375e-05
A28: 18 | B28: -7.538461538 | C28: linear | D28: 0.3076923077 | E28: -10.83846154 | G28: 1.962980392e-05
A29: 20 | B29: -6.923076923 | C29: linear | D29: 0.3076923077 | E29: -10.22307692 | G29: 3.632236382e-05
A30: 22 | B30: -6.307692308 | C30: linear | D30: 0.3076923077 | E30: -9.607692308 | G30: 6.720974489e-05
A31: 24 | B31: -5.692307692 | C31: linear | D31: 0.3076923077 | E31: -8.992307692 | G31: 0.0001243627708
A32: 26 | B32: -5.076923077 | C32: linear | D32: 0.3076923077 | E32: -8.376923077 | G32: 0.0002301169093
A33: 28 | B33: -4.461538462 | C33: linear | D33: 0.3076923077 | E33: -7.761538462 | G33: 0.0004258009981
A34: 30 | B34: -3.846153846 | C34: linear | D34: 0.3076923077 | E34: -7.146153846 | G34: 0.000787888602
A35: 32 | B35: -3.230769231 | C35: linear | D35: 0.3076923077 | E35: -6.530769231 | G35: 0.001457883969
A36: 34 | B36: -2.615384615 | C36: linear | D36: 0.3076923077 | E36: -5.915384615 | G36: 0.002697622052
A37: 36 | B37: =C10 -> -2 | C37: setpoint | D37: =(B41-B37)/(A41-A37) -> 0.3 | E37: -5.3 | G37: 0.004991593907
A38: 38 | B38: =B37+(A38-A37)*D38 -> -1.4 | D38: =D37 -> 0.3 | E38: -4.7 | G38: 0.009095277102
A39: 40 | B39: =B38+(A39-A38)*D39 -> -0.8 | D39: =D38 -> 0.3 | E39: -4.1 | G39: 0.0165726754
A40: 42 | B40: -0.2 | D40: =D39 -> 0.3 | E40: -3.5 | G40: 0.03019738342
A41: =B19 -> 42.66666667 | B41: =C11 -> 0 | D41: =(B45-B41)/(A45-A41) -> 0.15 | E41: -3.3 | G41: 0.0368831674
A42: =A40+2 -> 44 | B42: =B41+(A42-A41)*D42 -> 0.2 | D42: =D41 -> 0.15 | E42: -3.1 | G42: 0.04504920239
A43: 46 | B43: =B42+(A43-A42)*D43 -> 0.5 | D43: 0.15 | E43: -2.8 | G43: 0.06081006263
A44: 48 | B44: 0.8 | D44: 0.15 | E44: -2.5 | G44: 0.08208499862
A45: =C19 -> 49.33333333 | B45: =C12 -> 1 | D45: =(B50-B45)/(A50-A45) -> 0.15 | E45: -2.3 | G45: 0.1002588437
A46: =A44+2 -> 50 | B46: =B45+(A46-A45)*D46 -> 1.1 | D46: 0.15 | E46: -2.2 | G46: 0.1108031584
A47: 52 | B47: =B46+(A47-A46)*D47 -> 1.4 | D47: 0.15 | E47: -1.9 | G47: 0.1495686192
A48: 54 | B48: 1.7 | D48: 0.15 | E48: -1.6 | G48: 0.201896518
A49: 56 | B49: 2 | D49: 0.15 | E49: -1.3 | G49: 0.272531793
A50: =D19 -> 56 | B50: =C13 -> 2 | D50: =(B54-B50)/(A54-A50) -> 0.195 | E50: -1.3 | G50: 0.272531793
A51: =A49+2 -> 58 | B51: 2.39 | D51: 0.195 | E51: -0.91 | G51: 0.402524224
A52: 60 | B52: 2.78 | D52: 0.195 | E52: -0.52 | G52: 0.594520548
A53: 62 | B53: 3.17 | D53: 0.195 | E53: -0.13 | G53: 0.8780954309
A54: =E19 -> 62.66666667 | B54: =C14 -> 3.3 | D54: =(B58-B54)/(A58-A54) -> -0.015 | E54: 0 | G54: 1
A55: =A53+2 -> 64 | B55: 3.28 | D55: -0.015 | E55: -0.02 | G55: 0.9801986733
A56: 66 | B56: 3.25 | D56: -0.015 | E56: -0.05 | G56: 0.9512294245
A57: 68 | B57: 3.22 | D57: -0.015 | E57: -0.08 | G57: 0.9231163464
A58: =F19 -> 69.33333333 | B58: =C15 -> 3.2 | D58: =(B63-B58)/(A63-A58) -> -0.03 | E58: -0.1 | G58: 0.904837418
A59: =A57+2 -> 70 | B59: 3.18 | D59: -0.03 | E59: -0.12 | G59: 0.8869204367
A60: 72 | B60: 3.12 | D60: -0.03 | E60: -0.18 | G60: 0.8352702114
A61: 74 | B61: 3.06 | D61: -0.03 | E61: -0.24 | G61: 0.7866278611
A62: 76 | B62: 3 | D62: -0.03 | E62: -0.3 | G62: 0.7408182207
A63: =G19 -> 76 | B63: =C16 -> 3 | C63: last point | E63: -0.3 | G63: 0.7408182207
A64: =A62+2 -> 78 | B64: =B63 -> 3 | C64: constant | E64: -0.3 | G64: 0.7408182207
A65: 80 | B65: =B64 -> 3 | C65: constant | E65: -0.3 | G65: 0.7408182207
A66: 82 | B66: 3 | C66: constant | E66: -0.3 | G66: 0.7408182207
A67: 84 | B67: 3 | C67: constant | E67: -0.3 | G67: 0.7408182207
A68: 86 | B68: 3 | C68: constant | E68: -0.3 | G68: 0.7408182207

Sheet Len-1
A1: Type 1: Logistic Length Selectivity | D1: RED = do not edit
D2: YELLOW=enter values here
A3: L or A: | B3: L
A5: Name | B5: Type | C5: min | D5: max | E5: Value | G5: Transformed value for calculations
A6: Length at 50% selectivity | B6: value | C6: =C9 -> 0 | D6: =0.99*C10 -> 79.2 | E6: 40 | G6: =E6 -> 40
A7: Difference between lengths at 95% and 50% selectivity | B7: value | C7: -5 | D7: 30 | E7: 10 | G7: =E7 -> 10 | H7: range must be bounded to stay negative ro stay positive
A9: BINS: | B9: min | C9: 0 | H9: For the Toolbox GUI, the bin values can be obtained from the bin setup and should not be independently generated here
B10: max | C10: 80
B11: BinWidth | C11: 1
B12: MidBin | C12: =IF(B3="A",0,IF(B3="L",0.5,"WRONG: use L or A in cell B3")) -> 0.5
C13: max_selex:
C14: =MAX(C17:C141) -> 0.9999933771
A16: Bin | B16: Bin_Calc | C16: selex
A17: =C9 -> 0 | B17: =A17+$C$11*$C$12 -> 0.5 | C17: =1/(1+EXP(-LN(19)*(B17-$G$6)/$G$7)) -> 8.890361389e-06
A18: =IF(A17<$C$10-$C$11,A17+$C$11,$C$10) -> 1 | B18: 1.5 | C18: =1/(1+EXP(-LN(19)*(B18-$G$6)/$G$7)) -> 1.193420389e-05
A19: =IF(A18<$C$10-$C$11,A18+$C$11,$C$10) -> 2 | B19: 2.5 | C19: 1.6020167e-05
A20: 3 | B20: 3.5 | C20: 2.150502823e-05
A21: 4 | B21: 4.5 | C21: 2.886769973e-05
A22: 5 | B22: 5.5 | C22: 3.875102969e-05
A23: 6 | B23: 6.5 | C23: 5.201790356e-05
A24: 7 | B24: 7.5 | C24: 6.982653162e-05
A25: 8 | B25: 8.5 | C25: 9.373147429e-05
A26: 9 | B26: 9.5 | C26: 0.000125819186
A27: 10 | B27: 10.5 | C27: 0.0001688898395
A28: 11 | B28: 11.5 | C28: 0.000226701175
A29: 12 | B29: 12.5 | C29: 0.0003042954254
A30: 13 | B30: 13.5 | C30: 0.000408437434
A31: 14 | B31: 14.5 | C31: 0.0005482014393
A32: 15 | B32: 15.5 | C32: 0.0007357563604
A33: 16 | B33: 16.5 | C33: 0.0009874156283
A34: 17 | B34: 17.5 | C34: 0.001325038689
A35: 18 | B35: 18.5 | C35: 0.001777898401
A36: 19 | B36: 19.5 | C36: 0.002385162747
A37: 20 | B37: 20.5 | C37: 0.003199181385
A38: 21 | B38: 21.5 | C38: 0.004289817206
A39: =IF(A38<$C$10-$C$11,A38+$C$11,$C$10) -> 22 | B39: 22.5 | C39: 0.00575011786
A40: 23 | B40: 23.5 | C40: 0.007703674802
A41: 24 | B41: 24.5 | C41: 0.01031405214
A42: 25 | B42: 25.5 | C42: 0.01379665329
A43: 26 | B43: 26.5 | C43: 0.0184332735
A44: 27 | B44: 27.5 | C44: 0.02458926403
A45: 28 | B45: 28.5 | C45: 0.03273255673
A46: 29 | B46: 29.5 | C46: 0.04345254706
A47: 30 | B47: 30.5 | C47: 0.05747474774
A48: 31 | B48: 31.5 | C48: 0.07566400166
A49: 32 | B49: 32.5 | C49: 0.0990050107
A50: 33 | B50: 33.5 | C50: 0.1285449837
A51: 34 | B51: 34.5 | C51: 0.165281917
A52: 35 | B52: 35.5 | C52: 0.2099880346
A53: 36 | B53: 36.5 | C53: 0.2629767831
A54: 37 | B54: 37.5 | C54: 0.3238554205
A55: 38 | B55: 38.5 | C55: 0.391344103
A56: 39 | B56: 39.5 | C56: 0.4632608468
A57: 40 | B57: 40.5 | C57: 0.5367391532
A58: 41 | B58: 41.5 | C58: 0.608655897
A59: 42 | B59: 42.5 | C59: 0.6761445795
A60: 43 | B60: 43.5 | C60: 0.7370232169
A61: 44 | B61: 44.5 | C61: 0.7900119654
A62: 45 | B62: 45.5 | C62: 0.834718083
A63: 46 | B63: 46.5 | C63: 0.8714550163
A64: 47 | B64: 47.5 | C64: 0.9009949893
A65: 48 | B65: 48.5 | C65: 0.9243359983
A66: 49 | B66: 49.5 | C66: 0.9425252523
A67: 50 | B67: 50.5 | C67: 0.9565474529
A68: 51 | B68: 51.5 | C68: 0.9672674433
A69: 52 | B69: 52.5 | C69: 0.975410736
A70: 53 | B70: 53.5 | C70: 0.9815667265
A71: 54 | B71: 54.5 | C71: 0.9862033467
A72: 55 | B72: 55.5 | C72: 0.9896859479
A73: 56 | B73: 56.5 | C73: 0.9922963252
A74: 57 | B74: 57.5 | C74: 0.9942498821
A75: 58 | B75: 58.5 | C75: 0.9957101828
A76: 59 | B76: 59.5 | C76: 0.9968008186
A77: 60 | B77: 60.5 | C77: 0.9976148373
A78: 61 | B78: 61.5 | C78: 0.9982221016
A79: 62 | B79: 62.5 | C79: 0.9986749613
A80: 63 | B80: 63.5 | C80: 0.9990125844
A81: 64 | B81: =A81+$C$11*$C$12 -> 64.5 | C81: 0.9992642436
A82: 65 | B82: 65.5 | C82: =1/(1+EXP(-LN(19)*(B82-$G$6)/$G$7)) -> 0.9994517986
A83: =IF(A82<$C$10-$C$11,A82+$C$11,$C$10) -> 66 | B83: 66.5 | C83: 0.9995915626
A84: 67 | B84: 67.5 | C84: 0.9996957046
A85: 68 | B85: 68.5 | C85: 0.9997732988
A86: 69 | B86: 69.5 | C86: 0.9998311102
A87: 70 | B87: 70.5 | C87: 0.9998741808
A88: 71 | B88: 71.5 | C88: 0.9999062685
A89: 72 | B89: 72.5 | C89: 0.9999301735
A90: 73 | B90: 73.5 | C90: 0.9999479821
A91: 74 | B91: 74.5 | C91: 0.999961249
A92: 75 | B92: 75.5 | C92: 0.9999711323
A93: 76 | B93: 76.5 | C93: 0.999978495
A94: 77 | B94: 77.5 | C94: 0.9999839798
A95: 78 | B95: 78.5 | C95: 0.9999880658
A96: 79 | B96: 79.5 | C96: 0.9999911096
A97: 80 | B97: 80.5 | C97: 0.9999933771
A98: 80 | B98: 80.5 | C98: 0.9999933771
A99: 80 | B99: 80.5 | C99: 0.9999933771
A100: 80 | B100: 80.5 | C100: 0.9999933771
A101: 80 | B101: 80.5 | C101: 0.9999933771
A102: 80 | B102: 80.5 | C102: 0.9999933771
A103: 80 | B103: 80.5 | C103: 0.9999933771
A104: 80 | B104: 80.5 | C104: 0.9999933771
A105: 80 | B105: 80.5 | C105: 0.9999933771
A106: 80 | B106: 80.5 | C106: 0.9999933771
A107: 80 | B107: 80.5 | C107: 0.9999933771
A108: 80 | B108: 80.5 | C108: 0.9999933771
A109: 80 | B109: 80.5 | C109: 0.9999933771
A110: 80 | B110: 80.5 | C110: 0.9999933771
A111: 80 | B111: 80.5 | C111: 0.9999933771
A112: 80 | B112: 80.5 | C112: 0.9999933771
A113: 80 | B113: 80.5 | C113: 0.9999933771
A114: 80 | B114: 80.5 | C114: 0.9999933771
A115: 80 | B115: 80.5 | C115: 0.9999933771
A116: 80 | B116: 80.5 | C116: 0.9999933771
A117: 80 | B117: 80.5 | C117: 0.9999933771
A118: 80 | B118: 80.5 | C118: 0.9999933771
A119: 80 | B119: 80.5 | C119: 0.9999933771
A120: 80 | B120: 80.5 | C120: 0.9999933771
A121: 80 | B121: 80.5 | C121: 0.9999933771
A122: 80 | B122: 80.5 | C122: 0.9999933771
A123: 80 | B123: 80.5 | C123: 0.9999933771
A124: 80 | B124: 80.5 | C124: 0.9999933771
A125: 80 | B125: 80.5 | C125: 0.9999933771
A126: 80 | B126: 80.5 | C126: 0.9999933771
A127: 80 | B127: 80.5 | C127: 0.9999933771
A128: 80 | B128: 80.5 | C128: 0.9999933771
A129: 80 | B129: 80.5 | C129: 0.9999933771
A130: 80 | B130: 80.5 | C130: 0.9999933771
A131: 80 | B131: 80.5 | C131: 0.9999933771
A132: 80 | B132: 80.5 | C132: 0.9999933771
A133: 80 | B133: 80.5 | C133: 0.9999933771
A134: 80 | B134: 80.5 | C134: 0.9999933771
A135: 80 | B135: 80.5 | C135: 0.9999933771
A136: 80 | B136: 80.5 | C136: 0.9999933771
A137: 80 | B137: 80.5 | C137: 0.9999933771
A138: 80 | B138: 80.5 | C138: 0.9999933771
A139: 80 | B139: 80.5 | C139: 0.9999933771
A140: 80 | B140: 80.5 | C140: 0.9999933771
A141: 80 | B141: 80.5 | C141: 0.9999933771

Sheet Age-12
A1: Type 12: Logistic Age Selectivity
A3: L or A: | B3: A
A5: Name | B5: Value | C5: Type | D5: Trans | E5: min | F5: max
A6: Age at 50% selectivity | B6: 7 | C6: value | D6: =B6 -> 7 | E6: =C9 -> 0 | F6: =0.99*C10 -> 19.8
A7: Difference between ages at 95% and 50% selectivity | B7: 3 | C7: value | D7: =B7 -> 3 | E7: -5 | F7: 3
A9: BINS: | B9: min | C9: 0
B10: max | C10: 20
B11: BinWidth | C11: 1
B12: MidBin | C12: =IF(B3="A",0,IF(B3="L",0.5,"WRONG: use L or A in cell B3")) -> 0
C13: max_selex:
C14: =MAX(C17:C141) -> 0.9999971244
A16: Bin | B16: Bin_Mid | C16: selex
A17: =C9 -> 0 | B17: =A17+$C$11*$C$12 -> 0 | C17: =1/(1+EXP(-LN(19)*(B17-$D$6)/$D$7)) -> 0.001037029207
A18: =IF(A17<$C$10-$C$11,A17+$C$11,$C$10) -> 1 | B18: 1 | C18: =1/(1+EXP(-LN(19)*(B18-$D$6)/$D$7)) -> 0.002762430939
A19: 2 | B19: 2 | C19: 0.007337458071
A20: 3 | B20: 3 | C20: 0.0193424977
A21: 4 | B21: 4 | C21: 0.05
A22: 5 | B22: 5 | C22: 0.123147138
A23: 6 | B23: 6 | C23: 0.2725982855
A24: 7 | B24: 7 | C24: 0.5
A25: 8 | B25: 8 | C25: 0.7274017145
A26: 9 | B26: 9 | C26: 0.876852862
A27: 10 | B27: 10 | C27: 0.95
A28: 11 | B28: 11 | C28: 0.9806575023
A29: 12 | B29: 12 | C29: 0.9926625419
A30: 13 | B30: 13 | C30: 0.9972375691
A31: 14 | B31: 14 | C31: 0.9989629708
A32: 15 | B32: 15 | C32: 0.9996111147
A33: 16 | B33: 16 | C33: 0.9998542274
A34: 17 | B34: 17 | C34: 0.9999453658
A35: 18 | B35: 18 | C35: 0.9999795248
A36: 19 | B36: 19 | C36: 0.9999923267
A37: 20 | B37: 20 | C37: 0.9999971244
A38: 20 | B38: 20 | C38: 0.9999971244
A39: 20 | B39: 20 | C39: 0.9999971244
A40: 20 | B40: 20 | C40: 0.9999971244
A41: 20 | B41: 20 | C41: 0.9999971244
A42: 20 | B42: 20 | C42: 0.9999971244
A43: 20 | B43: 20 | C43: 0.9999971244
A44: 20 | B44: 20 | C44: 0.9999971244
A45: 20 | B45: 20 | C45: 0.9999971244
A46: 20 | B46: 20 | C46: 0.9999971244
A47: 20 | B47: 20 | C47: 0.9999971244
A48: 20 | B48: 20 | C48: 0.9999971244
A49: 20 | B49: 20 | C49: 0.9999971244
A50: 20 | B50: 20 | C50: 0.9999971244
A51: 20 | B51: 20 | C51: 0.9999971244
A52: 20 | B52: 20 | C52: 0.9999971244
A53: 20 | B53: 20 | C53: 0.9999971244
A54: 20 | B54: 20 | C54: 0.9999971244
A55: 20 | B55: 20 | C55: 0.9999971244
A56: 20 | B56: 20 | C56: 0.9999971244
A57: 20 | B57: 20 | C57: 0.9999971244
A58: 20 | B58: 20 | C58: 0.9999971244
A59: 20 | B59: 20 | C59: 0.9999971244
A60: 20 | B60: 20 | C60: 0.9999971244
A61: 20 | B61: 20 | C61: 0.9999971244
A62: 20 | B62: 20 | C62: 0.9999971244
A63: 20 | B63: 20 | C63: 0.9999971244
A64: 20 | B64: 20 | C64: 0.9999971244
A65: 20 | B65: 20 | C65: 0.9999971244
A66: 20 | B66: 20 | C66: 0.9999971244
A67: 20 | B67: 20 | C67: 0.9999971244
A68: 20 | B68: 20 | C68: 0.9999971244
A69: 20 | B69: 20 | C69: 0.9999971244
A70: 20 | B70: 20 | C70: 0.9999971244
A71: 20 | B71: 20 | C71: 0.9999971244
A72: 20 | B72: 20 | C72: 0.9999971244
A73: 20 | B73: 20 | C73: 0.9999971244
A74: 20 | B74: 20 | C74: 0.9999971244
A75: 20 | B75: 20 | C75: 0.9999971244
A76: 20 | B76: 20 | C76: 0.9999971244
A77: 20 | B77: 20 | C77: 0.9999971244
A78: 20 | B78: 20 | C78: 0.9999971244
A79: 20 | B79: 20 | C79: 0.9999971244
A80: 20 | B80: 20 | C80: 0.9999971244
A81: 20 | B81: =A81+$C$11*$C$12 -> 20 | C81: 0.9999971244
A82: =IF(A81<$C$10-$C$11,A81+$C$11,$C$10) -> 20 | B82: 20 | C82: =1/(1+EXP(-LN(19)*(B82-$D$6)/$D$7)) -> 0.9999971244
A83: 20 | B83: 20 | C83: 0.9999971244
A84: 20 | B84: 20 | C84: 0.9999971244
A85: 20 | B85: 20 | C85: 0.9999971244
A86: 20 | B86: 20 | C86: 0.9999971244
A87: 20 | B87: 20 | C87: 0.9999971244
A88: 20 | B88: 20 | C88: 0.9999971244
A89: 20 | B89: 20 | C89: 0.9999971244
A90: 20 | B90: 20 | C90: 0.9999971244
A91: 20 | B91: 20 | C91: 0.9999971244
A92: 20 | B92: 20 | C92: 0.9999971244
A93: 20 | B93: 20 | C93: 0.9999971244
A94: 20 | B94: 20 | C94: 0.9999971244
A95: 20 | B95: 20 | C95: 0.9999971244
A96: 20 | B96: 20 | C96: 0.9999971244
A97: 20 | B97: 20 | C97: 0.9999971244
A98: 20 | B98: 20 | C98: 0.9999971244
A99: 20 | B99: 20 | C99: 0.9999971244
A100: 20 | B100: 20 | C100: 0.9999971244
A101: 20 | B101: 20 | C101: 0.9999971244
A102: 20 | B102: 20 | C102: 0.9999971244
A103: 20 | B103: 20 | C103: 0.9999971244
A104: 20 | B104: 20 | C104: 0.9999971244
A105: 20 | B105: 20 | C105: 0.9999971244
A106: 20 | B106: 20 | C106: 0.9999971244
A107: 20 | B107: 20 | C107: 0.9999971244
A108: 20 | B108: 20 | C108: 0.9999971244
A109: 20 | B109: 20 | C109: 0.9999971244
A110: 20 | B110: 20 | C110: 0.9999971244
A111: 20 | B111: 20 | C111: 0.9999971244
A112: 20 | B112: 20 | C112: 0.9999971244
A113: 20 | B113: 20 | C113: 0.9999971244
A114: 20 | B114: 20 | C114: 0.9999971244
A115: 20 | B115: 20 | C115: 0.9999971244
A116: 20 | B116: 20 | C116: 0.9999971244
A117: 20 | B117: 20 | C117: 0.9999971244
A118: 20 | B118: 20 | C118: 0.9999971244
A119: 20 | B119: 20 | C119: 0.9999971244
A120: 20 | B120: 20 | C120: 0.9999971244
A121: 20 | B121: 20 | C121: 0.9999971244
A122: 20 | B122: 20 | C122: 0.9999971244
A123: 20 | B123: 20 | C123: 0.9999971244
A124: 20 | B124: 20 | C124: 0.9999971244
A125: 20 | B125: 20 | C125: 0.9999971244
A126: 20 | B126: 20 | C126: 0.9999971244
A127: 20 | B127: 20 | C127: 0.9999971244
A128: 20 | B128: 20 | C128: 0.9999971244
A129: 20 | B129: 20 | C129: 0.9999971244
A130: 20 | B130: 20 | C130: 0.9999971244
A131: 20 | B131: 20 | C131: 0.9999971244
A132: 20 | B132: 20 | C132: 0.9999971244
A133: 20 | B133: 20 | C133: 0.9999971244
A134: 20 | B134: 20 | C134: 0.9999971244
A135: 20 | B135: 20 | C135: 0.9999971244
A136: 20 | B136: 20 | C136: 0.9999971244
A137: 20 | B137: 20 | C137: 0.9999971244
A138: 20 | B138: 20 | C138: 0.9999971244
A139: 20 | B139: 20 | C139: 0.9999971244
A140: 20 | B140: 20 | C140: 0.9999971244
A141: 20 | B141: 20 | C141: 0.9999971244

Sheet Age -17
D5: Max
D6: =MAX(D9:D32) -> 2.22
A7: Age | B7: Parm | C7: Use_Parm | D7: Cum_Parm | E7: Scaled_ Cum_Parm | F7: Selex
A9: 0 | B9: -1000 | C9: =IF(B9>-999,B9,C8) -> 0 | D9: =C9 -> 0 | E9: =D9-$D$6 -> -2.22 | F9: =IF(B9=-1000,0,EXP(E9)) -> 0
A10: 1 | B10: -1000 | C10: =IF(B10>-999,B10,C9) -> 0 | D10: =D9+C10 -> 0 | E10: -2.22 | F10: =IF(B10=-1000,0,EXP(E10)) -> 0
A11: 2 | B11: 0 | C11: 0 | D11: =D10+C11 -> 0 | E11: -2.22 | F11: 0.1086091088
A12: 3 | B12: 0.5 | C12: 0.5 | D12: 0.5 | E12: -1.72 | F12: 0.1790661479
A13: 4 | B13: -999 | C13: 0.5 | D13: 1 | E13: -1.22 | F13: 0.2952301669
A14: 5 | B14: -999 | C14: 0.5 | D14: 1.5 | E14: -0.72 | F14: 0.486752256
A15: 6 | B15: 0.2 | C15: 0.2 | D15: 1.7 | E15: -0.52 | F15: 0.594520548
A16: 7 | B16: 0.2 | C16: 0.2 | D16: 1.9 | E16: -0.32 | F16: 0.7261490371
A17: 8 | B17: 0.2 | C17: 0.2 | D17: 2.1 | E17: -0.12 | F17: 0.8869204367
A18: 9 | B18: 0.1 | C18: 0.1 | D18: 2.2 | E18: -0.02 | F18: 0.9801986733
A19: 10 | B19: 0.02 | C19: 0.02 | D19: 2.22 | E19: 0 | F19: 1
A20: 11 | B20: 0 | C20: 0 | D20: 2.22 | E20: 0 | F20: 1
A21: 12 | B21: 0 | C21: 0 | D21: 2.22 | E21: 0 | F21: 1
A22: 13 | B22: 0 | C22: 0 | D22: 2.22 | E22: 0 | F22: 1
A23: 14 | B23: -0.1 | C23: -0.1 | D23: 2.12 | E23: -0.1 | F23: 0.904837418
A24: 15 | B24: -0.2 | C24: -0.2 | D24: 1.92 | E24: -0.3 | F24: 0.7408182207
A25: 16 | B25: -0.2 | C25: -0.2 | D25: 1.72 | E25: -0.5 | F25: 0.6065306597 | H25: NOTE:
A26: 17 | B26: -0.2 | C26: -0.2 | D26: 1.52 | E26: -0.7 | F26: 0.4965853038 | H26: parm value = -1000 causes selex equal zero for youngest ages (until first value >-1000)
A27: 18 | B27: -0.4 | C27: -0.4 | D27: 1.12 | E27: -1.1 | F27: 0.3328710837 | H27: parm value = -999 carries forward previous parm value
A28: 19 | B28: -999 | C28: -0.4 | D28: 0.72 | E28: -1.5 | F28: 0.2231301601 | H28: after any initial values of -1000, the first value should be >=0.0 and should not be estimated (so all other values are relative to this baseline)
A29: 20 | B29: -999 | C29: -0.4 | D29: 0.32 | E29: -1.9 | F29: 0.1495686192
A30: 21 | B30: 0 | C30: 0 | D30: 0.32 | E30: -1.9 | F30: 0.1495686192
A31: 22 | B31: -999 | C31: 0 | D31: 0.32 | E31: -1.9 | F31: 0.1495686192
A32: 23 | B32: -999 | C32: 0 | D32: 0.32 | E32: -1.9 | F32: 0.1495686192

Sheet Age-17 improved
D2: min age for selex=1.0 | E2: 8
D3: max age for selex=1.0 | E3: 12
D6: mean over selected age range | E6: =SUMPRODUCT(D9:D32,E9:E32)/SUM(E9:E32) -> 2.192
A7: Age | B7: Parm | C7: Use_Parm | D7: Cum_Parm | E7: select_range | F7: Scaled_ Cum_Parm | G7: Selex
A9: 0 | B9: -1000 | C9: =IF(B9>-999,B9,C8) -> 0 | D9: =C9 -> 0 | E9: =IF(A9<$E$2,0,IF(A9>$E$3,0,1)) -> 0 | F9: =D9-$E$6 -> -2.192 | G9: =IF(B9=-1000,0,EXP(F9)) -> 0
A10: 1 | B10: -1000 | C10: =IF(B10>-999,B10,C9) -> 0 | D10: =D9+C10 -> 0 | E10: =IF(A10<$E$2,0,IF(A10>$E$3,0,1)) -> 0 | F10: =D10-$E$6 -> -2.192 | G10: =IF(B10=-1000,0,EXP(F10)) -> 0
A11: 2 | B11: 0 | C11: 0 | D11: =D10+C11 -> 0 | E11: =IF(A11<$E$2,0,IF(A11>$E$3,0,1)) -> 0 | F11: =D11-$E$6 -> -2.192 | G11: 0.1116931388
A12: 3 | B12: 0.5 | C12: 0.5 | D12: 0.5 | E12: =IF(A12<$E$2,0,IF(A12>$E$3,0,1)) -> 0 | F12: =D12-$E$6 -> -1.692 | G12: 0.1841508537
A13: 4 | B13: -999 | C13: 0.5 | D13: 1 | E13: =IF(A13<$E$2,0,IF(A13>$E$3,0,1)) -> 0 | F13: =D13-$E$6 -> -1.192 | G13: 0.3036134296
A14: 5 | B14: -999 | C14: 0.5 | D14: 1.5 | E14: =IF(A14<$E$2,0,IF(A14>$E$3,0,1)) -> 0 | F14: =D14-$E$6 -> -0.692 | G14: 0.5005739194
A15: 6 | B15: 0.2 | C15: 0.2 | D15: 1.7 | E15: =IF(A15<$E$2,0,IF(A15>$E$3,0,1)) -> 0 | F15: =D15-$E$6 -> -0.492 | G15: 0.6114023658
A16: 7 | B16: 0.2 | C16: 0.2 | D16: 1.9 | E16: =IF(A16<$E$2,0,IF(A16>$E$3,0,1)) -> 0 | F16: =D16-$E$6 -> -0.292 | G16: 0.746768536
A17: 8 | B17: 0.2 | C17: 0.2 | D17: 2.1 | E17: =IF(A17<$E$2,0,IF(A17>$E$3,0,1)) -> 1 | F17: =D17-$E$6 -> -0.092 | G17: 0.9121051495
A18: 9 | B18: 0.1 | C18: 0.1 | D18: 2.2 | E18: =IF(A18<$E$2,0,IF(A18>$E$3,0,1)) -> 1 | F18: =D18-$E$6 -> 0.008 | G18: 1.008032086
A19: 10 | B19: 0.02 | C19: 0.02 | D19: 2.22 | E19: =IF(A19<$E$2,0,IF(A19>$E$3,0,1)) -> 1 | F19: =D19-$E$6 -> 0.028 | G19: 1.028395684
A20: 11 | B20: 0 | C20: 0 | D20: 2.22 | E20: =IF(A20<$E$2,0,IF(A20>$E$3,0,1)) -> 1 | F20: =D20-$E$6 -> 0.028 | G20: 1.028395684
A21: 12 | B21: 0 | C21: 0 | D21: 2.22 | E21: =IF(A21<$E$2,0,IF(A21>$E$3,0,1)) -> 1 | F21: =D21-$E$6 -> 0.028 | G21: 1.028395684
A22: 13 | B22: 0 | C22: 0 | D22: 2.22 | E22: =IF(A22<$E$2,0,IF(A22>$E$3,0,1)) -> 0 | F22: =D22-$E$6 -> 0.028 | G22: 1.028395684
A23: 14 | B23: -0.1 | C23: -0.1 | D23: 2.12 | E23: =IF(A23<$E$2,0,IF(A23>$E$3,0,1)) -> 0 | F23: =D23-$E$6 -> -0.072 | G23: 0.9305308958
A24: 15 | B24: -0.2 | C24: -0.2 | D24: 1.92 | E24: =IF(A24<$E$2,0,IF(A24>$E$3,0,1)) -> 0 | F24: =D24-$E$6 -> -0.272 | G24: 0.7618542611
A25: 16 | B25: -0.2 | C25: -0.2 | D25: 1.72 | E25: =IF(A25<$E$2,0,IF(A25>$E$3,0,1)) -> 0 | F25: =D25-$E$6 -> -0.472 | G25: 0.6237535129 | I25: NOTE:
A26: 17 | B26: -0.2 | C26: -0.2 | D26: 1.52 | E26: =IF(A26<$E$2,0,IF(A26>$E$3,0,1)) -> 0 | F26: =D26-$E$6 -> -0.672 | G26: 0.5106861834 | I26: parm value = -1000 causes selex equal zero for youngest ages (until first value >-1000)
A27: 18 | B27: -0.4 | C27: -0.4 | D27: 1.12 | E27: =IF(A27<$E$2,0,IF(A27>$E$3,0,1)) -> 0 | F27: =D27-$E$6 -> -1.072 | G27: 0.3423231859 | I27: parm value = -999 carries forward previous parm value
A28: 19 | B28: -999 | C28: -0.4 | D28: 0.72 | E28: =IF(A28<$E$2,0,IF(A28>$E$3,0,1)) -> 0 | F28: =D28-$E$6 -> -1.472 | G28: 0.2294660938 | I28: after any initial values of -1000, the first value should be >=0.0 and should not be estimated (so all other values are relative to this baseline)
A29: 20 | B29: -999 | C29: -0.4 | D29: 0.32 | E29: =IF(A29<$E$2,0,IF(A29>$E$3,0,1)) -> 0 | F29: =D29-$E$6 -> -1.872 | G29: 0.1538157225
A30: 21 | B30: 0 | C30: 0 | D30: 0.32 | E30: =IF(A30<$E$2,0,IF(A30>$E$3,0,1)) -> 0 | F30: =D30-$E$6 -> -1.872 | G30: 0.1538157225
A31: 22 | B31: -999 | C31: 0 | D31: 0.32 | E31: =IF(A31<$E$2,0,IF(A31>$E$3,0,1)) -> 0 | F31: =D31-$E$6 -> -1.872 | G31: 0.1538157225
A32: 23 | B32: -999 | C32: 0 | D32: 0.32 | E32: =IF(A32<$E$2,0,IF(A32>$E$3,0,1)) -> 0 | F32: =D32-$E$6 -> -1.872 | G32: 0.1538157225
